fUSD/lending_fUSD_20260202
["ID","MTS","AMOUNT","RATE_DAILY","PERIOD"]
[404308776,1770053443097,-500.0,0.00013698,2]
[404308777,1770053443106,-500.0,0.00013698,2]
[404308778,1770053443115,-500.0,0.00013698,2]
[404308779,1770053443124,-500.0,0.00013698,2]
[404308780,1770053443133,-500.0,0.00013698,2]
[404308781,1770053443143,-500.0,0.00013698,2]
[404308782,1770053443152,-500.0,0.00013698,2]
[404308783,1770053443161,-500.0,0.00013698,2]
[404308784,1770053443171,-500.0,0.00013698,2]
[404308785,1770053443180,-520.9392261,0.00013698,2]
[404308786,1770053443190,-500.0,0.00013698,2]
[404308787,1770053443199,-500.0,0.00013698,2]
[404308788,1770053443218,-500.0,0.00013698,2]
[404308789,1770053443228,-500.0,0.00013698,2]
[404308790,1770053443237,-500.0,0.00013698,2]
[404308791,1770053443247,-607.62859807,0.00013698,2]
[404308792,1770053443257,-582.68,0.00013698,2]
[404308793,1770053443266,-582.68,0.00013698,2]
[404308794,1770053443276,-582.68,0.00013698,2]
[404308795,1770053443286,-582.68,0.00013698,2]
[404308796,1770053443296,-582.68,0.00013698,2]
[404308797,1770053443305,-582.68,0.00013698,2]
[404308798,1770053443315,-582.68,0.00013698,2]
[404308799,1770053443325,-582.68,0.00013698,2]
[404308800,1770053443334,-582.68,0.00013698,2]
[404308801,1770053443344,-582.68,0.00013698,2]
[404308802,1770053443353,-582.68,0.00013698,2]
[404308803,1770053443363,-582.68,0.00013698,2]
[404308804,1770053443372,-582.68,0.00013698,2]
[404308805,1770053443382,-582.68,0.00013698,2]
[404308806,1770053443391,-500.0,0.00013698,2]
[404308807,1770053443400,-500.0,0.00013698,2]
[404308808,1770053443410,-500.0,0.00013698,2]
[404308809,1770053443419,-469.64985738,0.00013698,2]
[404308810,1770053443428,-535.53919898,0.00013698,2]
[404308811,1770053443439,-500.0,0.00013698,2]
[404308812,1770053443449,-500.0,0.00013698,2]
[404308813,1770053443458,-500.0,0.00013698,2]
[404308814,1770053443468,-500.0,0.00013698,2]
[404308815,1770053443478,-500.0,0.00013698,2]
[404308816,1770053443487,-500.0,0.00013698,2]
[404308817,1770053443497,-500.0,0.00013698,2]
[404308818,1770053443506,-500.0,0.00013698,2]
[404308819,1770053443516,-500.0,0.00013698,2]
[404308820,1770053443525,-500.0,0.00013698,2]
[404308821,1770053443535,-500.0,0.00013698,2]
[404308822,1770053443545,-500.0,0.00013698,2]
[404308823,1770053443555,-500.0,0.00013698,2]
[404308824,1770053443564,-500.0,0.00013698,2]
[404308825,1770053443574,-638.24,0.00013698,2]
[404308826,1770053443584,-638.24,0.00013698,2]
[404308827,1770053443594,-638.24,0.00013698,2]
[404308828,1770053443603,-638.24,0.00013698,2]
[404308829,1770053443613,-638.24,0.00013698,2]
[404308830,1770053443623,-638.24,0.00013698,2]
[404308831,1770053443632,-638.24,0.00013698,2]
[404308832,1770053443642,-638.24,0.00013698,2]
[404308833,1770053443651,-638.24,0.00013698,2]
[404308834,1770053443661,-307.57,0.00013699,2]
[404308835,1770053443671,-256.31,0.00013699,2]
[404308836,1770053443681,-213.59,0.00013699,2]
[404308838,1770053443691,-177.99,0.00013699,2]
[404308839,1770053443701,-839.54,0.00013699,2]
[404308840,1770053443710,-166.66,0.00013746,2]
[404308841,1770053443720,-495.10849411,0.00013748,2]
[404308842,1770053443729,-500.0,0.00013753,2]
[404308843,1770053443739,-500.0,0.00013753,2]
[404308844,1770053443750,-500.0,0.00013753,2]
[404308845,1770053443759,-670.0,0.00013753,2]
[404308846,1770053443768,-492.0,0.00013753,2]
[404308847,1770053443778,-1794.0,0.00013753,2]
[404308848,1770053443788,-806.0,0.00013753,2]
[404308849,1770053443798,-500.0,0.00013753,2]
[404308850,1770053443807,-559.12116147,0.00013801,2]
[404308851,1770053443816,-500.0,0.00013808,2]
[404308853,1770053443825,-500.0,0.00013808,2]
[404308855,1770053443835,-494.0,0.00013808,2]
[404308857,1770053443844,-500.0,0.00013808,2]
[404308860,1770053443854,-670.0,0.00013808,2]
[404308862,1770053443863,-492.0,0.00013808,2]
[404308864,1770053443872,-1794.0,0.00013808,2]
[404308865,1770053443882,-806.0,0.00013808,2]
[404308866,1770053443891,-500.0,0.00013808,2]
[404308867,1770053443900,-500.0,0.00013862,2]
[404308868,1770053443909,-500.0,0.00013862,2]
[404308869,1770053443918,-494.0,0.00013862,2]
[404308870,1770053443927,-500.0,0.00013862,2]
[404308871,1770053443936,-670.0,0.00013862,2]
[404308872,1770053443946,-492.0,0.00013862,2]
[404308873,1770053443955,-1794.0,0.00013862,2]
[404308874,1770053444044,-806.0,0.00013862,2]
[404308875,1770053444054,-500.0,0.00013862,2]
[404308876,1770053444063,-476.65,0.000139,2]
[404308877,1770053444072,-313.45864486,0.00013916,2]
[404308878,1770053444083,-500.0,0.00013917,2]
[404308879,1770053444096,-500.0,0.00013917,2]
[404308880,1770053444105,-494.0,0.00013917,2]
[404308881,1770053444114,-500.0,0.00013917,2]
[404308882,1770053444123,-670.0,0.00013917,2]
[404308883,1770053444132,-492.0,0.00013917,2]
[404308884,1770053444141,-1794.0,0.00013917,2]
[404308885,1770053444150,-806.0,0.00013917,2]
[404308886,1770053444159,-500.0,0.00013917,2]
[404308887,1770053444168,-500.0,0.00013972,2]
[404308888,1770053444177,-601.87473631,0.00013972,2]
[404308889,1770053444186,-494.0,0.00013972,2]
[404308890,1770053444195,-500.0,0.00013972,2]
[404308891,1770053444204,-670.0,0.00013972,2]
[404308892,1770053444213,-492.0,0.00013972,2]
[404308893,1770053444222,-1794.0,0.00013972,2]
[404308894,1770053444231,-806.0,0.00013972,2]
[404308895,1770053444239,-500.0,0.00013972,2]
[404308896,1770053444249,-500.0,0.00013972,2]
[404308897,1770053444258,-500.0,0.00013972,2]
[404308898,1770053444267,-500.0,0.00013972,2]
[404308899,1770053444275,-500.0,0.00013972,2]
[404308900,1770053444284,-500.0,0.00013972,2]
[404308901,1770053444293,-1017.42,0.00013972,2]
[404308902,1770053444302,-513.79,0.00013972,2]
[404308903,1770053444311,-651.24,0.00013972,2]
[404308904,1770053444320,-500.0,0.00013972,2]
[404308905,1770053444329,-305.88,0.00013972,2]
[404308906,1770053444338,-500.0,0.00013972,2]
[404308907,1770053444347,-638.24,0.00013972,2]
[404308908,1770053444356,-500.0,0.00013973,2]
[404308909,1770053444365,-500.0,0.00013973,2]
[404308910,1770053444375,-500.0,0.00013973,2]
[404308911,1770053444384,-569.16951839,0.00013973,2]
[404308912,1770053444393,-500.0,0.00013973,2]
[404308913,1770053444402,-500.0,0.00013973,2]
[404308914,1770053444412,-500.0,0.00013973,2]
[404308915,1770053444421,-170.36367963,0.00013973,2]
[404308916,1770053444430,-544.91692471,0.00013973,2]
[404308917,1770053444440,-500.0,0.00013973,2]
[404308918,1770053444449,-500.0,0.00013973,2]
[404308919,1770053444458,-500.0,0.00013973,2]
[404308920,1770053444467,-164.70227396,0.00013973,2]
[404308921,1770053444477,-543.12258786,0.00013973,2]
[404308922,1770053444486,-163.90719075,0.00013973,2]
[404308923,1770053444496,-500.0,0.00013973,2]
[404308924,1770053444505,-500.0,0.00013973,2]
[404308925,1770053444515,-500.0,0.00013973,2]
[404308926,1770053444524,-541.62569807,0.00013973,2]
[404308927,1770053444534,-500.0,0.00013973,2]
[404308928,1770053444543,-500.0,0.00013973,2]
[404308929,1770053444553,-181.57502123,0.00013973,2]
[404308930,1770053444563,-500.0,0.00013973,2]
[404308931,1770053444572,-259.40505883,0.00013973,2]
[404308932,1770053444582,-500.0,0.00013973,2]
[404308933,1770053444591,-500.0,0.00013973,2]
[404308934,1770053444600,-500.0,0.00013973,2]
[404308935,1770053444610,-500.0,0.00013973,2]
[404308936,1770053444620,-500.12230816,0.00013973,2]
[404308937,1770053444630,-500.0,0.00013973,2]
[404308938,1770053444639,-500.0,0.00013973,2]
[404308939,1770053444648,-500.0,0.00013973,2]
[404308940,1770053444657,-500.0,0.00013973,2]
[404308941,1770053444666,-500.0,0.00013973,2]
[404308942,1770053444677,-200.896366,0.00014,2]
[404308943,1770053444686,-500.0,0.00014027,2]
[404308944,1770053444695,-494.0,0.00014027,2]
[404308945,1770053444705,-500.0,0.00014027,2]
[404308946,1770053444714,-670.0,0.00014027,2]
[404308947,1770053444724,-492.0,0.00014027,2]
[404308948,1770053444733,-1794.0,0.00014027,2]
[404308949,1770053444742,-806.0,0.00014027,2]
[404308950,1770053444751,-500.0,0.00014027,2]
[404308951,1770053444760,-500.0,0.00014082,2]
[404308952,1770053444770,-494.0,0.00014082,2]
[404308953,1770053444779,-500.0,0.00014082,2]
[404308954,1770053444788,-670.0,0.00014082,2]
[404308955,1770053444797,-492.0,0.00014082,2]
[404308956,1770053444807,-1794.0,0.00014082,2]
[404308957,1770053444816,-806.0,0.00014082,2]
[404308958,1770053444825,-382.66757937,0.00014082,2]
[404308959,1770053444834,-500.0,0.00014082,2]
[404308960,1770053444843,-500.0,0.00014136,2]
[404308961,1770053444853,-494.0,0.00014136,2]
[404308962,1770053444867,-500.0,0.00014136,2]
[404308963,1770053444876,-670.0,0.00014136,2]
[404308964,1770053444885,-492.0,0.00014136,2]
[404308965,1770053444895,-1794.0,0.00014136,2]
[404308966,1770053444904,-806.0,0.00014136,2]
[404308967,1770053444914,-27669.8692784,0.00014142,2]
[404308968,1770053444924,-166.66,0.00014146,2]
[404308969,1770053444933,-500.0,0.00014156,2]
[404308970,1770053444943,-222.88299738,0.00014156,2]
[404308971,1770053444956,-228.2574055,0.00014191,2]
[404308972,1770053444971,-494.0,0.00014191,2]
[404308973,1770053444983,-500.0,0.00014191,2]
[404308974,1770053444992,-670.0,0.00014191,2]
[404308975,1770053445002,-492.0,0.00014191,2]
[404308976,1770053445014,-1794.0,0.00014191,2]
[404308977,1770053445023,-806.0,0.00014191,2]
[404308978,1770053445033,-1000.0,0.00014209,2]
[404308979,1770053445042,-200.0,0.0001421,2]
[404308980,1770053445053,-494.0,0.00014246,2]
[404308981,1770053445063,-500.0,0.00014246,2]
[404308982,1770053445072,-670.0,0.00014246,2]
[404308983,1770053445084,-492.0,0.00014246,2]
[404308984,1770053445094,-1794.0,0.00014246,2]
[404308985,1770053445103,-806.0,0.00014246,2]
[404308986,1770053445114,-305.88,0.00014246,2]
[404308987,1770053445123,-1000.0,0.00014249,2]
[404308988,1770053445140,-200.0,0.0001425,2]
[404308989,1770053445151,-200.0,0.0001425,2]
[404308990,1770053445161,-494.0,0.00014301,2]
[404308991,1770053445171,-500.0,0.00014301,2]
[404308992,1770053445180,-670.0,0.00014301,2]
[404308993,1770053445189,-492.0,0.00014301,2]
[404308994,1770053445199,-1794.0,0.00014301,2]
[404308995,1770053445208,-806.0,0.00014301,2]
[404308996,1770053445218,-200.0,0.00014352,2]
[404308997,1770053445227,-494.0,0.00014356,2]
[404308998,1770053445238,-546.41767712,0.00014356,2]
[404308999,1770053445247,-670.0,0.00014356,2]
[404309000,1770053445257,-492.0,0.00014356,2]
[404309001,1770053445267,-1794.0,0.00014356,2]
[404309002,1770053445276,-806.0,0.00014356,2]
[404309003,1770053445286,-10331.11610173,0.0001439,2]
[404309004,1770053445295,-200.0,0.00014392,2]
[404309005,1770053445304,-200.0,0.00014392,2]
[404309006,1770053445314,-151.0,0.00014407,2]
[404309007,1770053445323,-494.0,0.0001441,2]
[404309008,1770053445332,-670.0,0.0001441,2]
[404309009,1770053445342,-492.0,0.0001441,2]
[404309010,1770053445351,-806.0,0.0001441,2]
[404309011,1770053445360,-1794.0,0.0001441,2]
[404309012,1770053445380,-494.0,0.00014465,2]
[404309013,1770053445399,-670.0,0.00014465,2]
[404309014,1770053445410,-492.0,0.00014465,2]
[404309015,1770053445421,-806.0,0.00014465,2]
[404309016,1770053445432,-1794.0,0.00014465,2]
[404309017,1770053445441,-500.0,0.00014466,2]
[404309018,1770053445451,-200.0,0.00014496,2]
[404309019,1770053445463,-494.0,0.0001452,2]
[404309020,1770053445474,-670.0,0.0001452,2]
[404309021,1770053445484,-492.0,0.0001452,2]
[404309022,1770053445494,-806.0,0.0001452,2]
[404309023,1770053445503,-1794.0,0.0001452,2]
[404309024,1770053445512,-305.88,0.0001452,2]
[404309025,1770053445521,-723.77841226,0.00014521,2]
[404309026,1770053445531,-1000.0,0.00014521,2]
[404309027,1770053445540,-1000.0,0.00014521,2]
[404309028,1770053445549,-1000.0,0.00014521,2]
[404309029,1770053445558,-1000.0,0.00014521,2]
[404309030,1770053445568,-1000.0,0.00014521,2]
[404309031,1770053445578,-501.171316,0.00014521,2]
[404309032,1770053445588,-1000.0,0.00014521,2]
[404309033,1770053445598,-1037.01217783,0.00014521,2]
[404309034,1770053445607,-1000.0,0.00014521,2]
[404309035,1770053445617,-1000.0,0.00014521,2]
[404309036,1770053445626,-1000.0,0.00014521,2]
[404309037,1770053445635,-233.72893135,0.00014521,2]
[404309038,1770053445645,-156.95111861,0.00014521,2]
[404309039,1770053445655,-501.77480883,0.00014521,2]
[404309040,1770053445664,-1000.0,0.00014521,2]
[404309041,1770053445674,-1020.60707483,0.00014521,2]
[404309043,1770053445684,-911.8365552,0.00014521,2]
[404309045,1770053445693,-548.87500636,0.00014521,2]
[404309046,1770053445702,-546.2635897,0.00014521,2]
[404309048,1770053445712,-152.81544497,0.00014521,2]
[404309049,1770053445721,-1000.0,0.00014521,2]
[404309050,1770053445731,-1000.0,0.00014521,2]
[404309051,1770053445741,-1000.0,0.00014521,2]
[404309052,1770053445750,-200.0,0.00014536,2]
[404309053,1770053445760,-200.0,0.00014536,2]
[404309054,1770053445769,-151.0,0.00014553,2]
[404309055,1770053445778,-714.26315595,0.00014558,2]
[404309056,1770053445788,-761.24012554,0.00014558,2]
[404309057,1770053445797,-494.0,0.00014575,2]
[404309058,1770053445807,-670.0,0.00014575,2]
[404309059,1770053445816,-492.0,0.00014575,2]
[404309060,1770053445825,-806.0,0.00014575,2]
[404309061,1770053445835,-1794.0,0.00014575,2]
[404309062,1770053445844,-494.0,0.00014629,2]
[404309063,1770053445854,-670.0,0.00014629,2]
[404309064,1770053445866,-492.0,0.00014629,2]
[404309065,1770053445875,-806.0,0.00014629,2]
[404309066,1770053445884,-1794.0,0.00014629,2]
[404309067,1770053445893,-200.0,0.00014641,2]
[404309068,1770053445903,-200.0,0.00014682,2]
[404309069,1770053445914,-200.0,0.00014682,2]
[404309070,1770053445923,-506.0,0.00014684,2]
[404309071,1770053445932,-670.19168007,0.00014684,2]
[404309072,1770053445943,-498.65177748,0.00014684,2]
[404309073,1770053445952,-821.05876183,0.00014684,2]
[404309074,1770053445962,-1794.0,0.00014684,2]
[404309076,1770053445972,-500.0,0.00014704,2]
[404309077,1770053445982,-1600.0,0.00014748,2]
[404309078,1770053445992,-736.0,0.00014777,2]
[404309079,1770053446005,-200.0,0.00014787,2]
[404309080,1770053446015,-305.88,0.00014794,2]
[404309081,1770053446025,-200.0,0.00014829,2]
[404309082,1770053446034,-200.0,0.00014829,2]
[404309083,1770053446044,-27669.8692784,0.00014874,2]
[404309084,1770053446054,-250.0,0.00014952,2]
[404309085,1770053446065,-1186.16205934,0.00015,2]
[404309086,1770053446078,-2140.76085253,0.00015,14]
[404309087,1770053446087,-6770.64481546,0.00015,2]
[404309088,1770053446097,-367291.63840141,0.00015,3]
[404309090,1770053446107,-28800.83718944,0.00015,2]
[404309091,1770053446117,-418.0702292,0.00015,2]
[404309092,1770053446127,-823.0,0.00015,2]
[404309093,1770053446137,-250.0,0.00015,2]
[404309094,1770053446146,-868.9,0.00015034,2]
[404309095,1770053446155,-456.97,0.00015044,2]
[404309096,1770053446165,-3292.0,0.0001506,2]
[404309097,1770053446174,-305.88,0.00015068,2]
[404309098,1770053446183,-582.73923754,0.00015068,2]
[404309099,1770053446193,-1500.0,0.00015068,2]
[404309100,1770053446202,-1500.0,0.00015068,2]
[404309101,1770053446211,-617.67942522,0.00015068,2]
[404309102,1770053446220,-1500.0,0.00015068,2]
[404309104,1770053446229,-453.96398478,0.00015068,2]
[404309106,1770053446239,-1500.0,0.00015068,2]
[404309108,1770053446247,-506.79391477,0.00015068,2]
[404309109,1770053446256,-1500.0,0.00015068,2]
[404309110,1770053446266,-1500.0,0.00015068,2]
[404309111,1770053446275,-1500.0,0.00015068,2]
[404309112,1770053446284,-1013.1611986,0.00015068,2]
[404309113,1770053446296,-854.38080813,0.00015068,2]
[404309114,1770053446306,-773.23,0.00015085,2]
[404309115,1770053446316,-213.09371033,0.00015171,2]
[404309116,1770053446329,-500.0,0.00015171,2]
[404309117,1770053446340,-500.0,0.00015171,2]
[404309118,1770053446350,-500.0,0.00015171,2]
[404309119,1770053446359,-500.0,0.00015171,2]
[404309120,1770053446368,-1017.42,0.00015171,2]
[404309121,1770053446378,-513.79,0.00015171,2]
[404309122,1770053446387,-651.24,0.00015171,2]
[404309123,1770053446396,-500.0,0.00015171,2]
[404309124,1770053446405,-500.0,0.00015171,2]
[404309125,1770053446415,-638.24,0.00015171,2]
[404309126,1770053446424,-500.0,0.00015252,2]
[404309127,1770053446433,-1517.64,0.000153,2]
[404309128,1770053446443,-868.9,0.00015308,2]
[404309129,1770053446452,-186.58,0.00015326,2]
[404309130,1770053446461,-305.88,0.00015342,2]
[404309131,1770053446470,-773.23,0.00015359,2]
[404309132,1770053446479,-508.63384765,0.000154,2]
[404309133,1770053446489,-163.12661798,0.00015473,2]
[404309134,1770053446498,-500.46237197,0.00015473,2]
[404309135,1770053446508,-163.34993731,0.00015473,2]
[404309136,1770053446517,-500.0,0.00015473,2]
[404309137,1770053446527,-500.0,0.00015473,2]
[404309138,1770053446536,-500.0,0.00015473,2]
[404309139,1770053446545,-500.0,0.00015473,2]
[404309140,1770053446555,-500.0,0.00015473,2]
[404309141,1770053446564,-500.0,0.00015473,2]
[404309142,1770053446573,-574.06272579,0.00015473,2]
[404309143,1770053446583,-500.0,0.00015473,2]
[404309144,1770053446592,-163.46067997,0.00015473,2]
[404309145,1770053446601,-522.30858015,0.00015473,2]
[404309146,1770053446611,-500.0,0.00015473,2]
[404309147,1770053446620,-161.45537985,0.00015473,2]
[404309148,1770053446629,-500.6120606,0.00015473,2]
[404309149,1770053446639,-559.67308476,0.00015473,2]
[404309150,1770053446648,-500.0,0.00015473,2]
[404309151,1770053446657,-500.62768041,0.00015473,2]
[404309152,1770053446666,-500.0,0.00015473,2]
[404309153,1770053446675,-500.0,0.00015473,2]
[404309154,1770053446685,-500.0,0.00015473,2]
[404309155,1770053446694,-500.0,0.00015473,2]
[404309156,1770053446703,-500.0,0.00015473,2]
[404309157,1770053446712,-500.0,0.00015473,2]
[404309158,1770053446722,-500.0,0.00015473,2]
[404309159,1770053446731,-500.0,0.00015473,2]
[404309160,1770053446740,-151.07783782,0.00015473,2]
[404309161,1770053446749,-160.54295648,0.00015473,2]
[404309162,1770053446758,-464.35211832,0.00015473,2]
[404309163,1770053446768,-486.90150068,0.00015473,2]
[404309164,1770053446777,-500.0,0.00015473,2]
[404309165,1770053446786,-500.40906893,0.00015473,2]
[404309166,1770053446794,-500.0,0.00015473,2]
[404309167,1770053446803,-500.0,0.00015473,2]
[404309168,1770053446812,-500.0,0.00015473,2]
[404309169,1770053446822,-500.0,0.00015473,2]
[404309170,1770053446831,-500.0,0.00015473,2]
[404309171,1770053446840,-500.0,0.00015473,2]
[404309172,1770053446849,-500.0,0.00015473,2]
[404309173,1770053446859,-500.0,0.00015473,2]
[404309174,1770053446868,-512.94754167,0.00015473,2]
[404309175,1770053446877,-500.0,0.00015473,2]
[404309176,1770053446886,-500.63586771,0.00015473,2]
[404309177,1770053446895,-500.0,0.00015473,2]
[404309178,1770053446903,-336.43827265,0.00015473,2]
[404309179,1770053446913,-500.0,0.00015473,2]
[404309180,1770053446922,-500.0,0.00015473,2]
[404309181,1770053446931,-500.0,0.00015473,2]
[404309182,1770053446939,-500.0,0.00015473,2]
[404309183,1770053446948,-500.0,0.00015473,2]
[404309184,1770053446958,-500.0,0.00015473,2]
[404309185,1770053446967,-200.70028911,0.00015473,2]
[404309186,1770053446979,-500.0,0.00015473,2]
[404309187,1770053446989,-500.41005015,0.00015473,2]
[404309188,1770053446999,-500.0,0.00015473,2]
[404309189,1770053447012,-500.0,0.00015473,2]
[404309190,1770053447021,-500.0,0.00015473,2]
[404309191,1770053447032,-500.0,0.00015473,2]
[404309192,1770053447041,-185.46503654,0.00015473,2]
[404309193,1770053447054,-500.0,0.00015473,2]
[404309194,1770053447064,-550.09529227,0.00015473,2]
[404309195,1770053447073,-500.0,0.00015473,2]
[404309196,1770053447085,-565.00011393,0.00015473,2]
[404309197,1770053447095,-500.0,0.00015473,2]
[404309198,1770053447105,-500.0,0.00015473,2]
[404309199,1770053447115,-500.0,0.00015473,2]
[404309200,1770053447124,-500.0,0.00015473,2]
[404309201,1770053447134,-500.0,0.00015473,2]
[404309202,1770053447143,-500.0,0.00015473,2]
[404309203,1770053447153,-868.9,0.00015582,2]
[404309204,1770053447165,-27669.8692784,0.00015605,2]
[404309205,1770053447175,-305.88,0.00015616,2]
[404309206,1770053447185,-2000.0,0.00015616,2]
[404309207,1770053447195,-1002.17701724,0.00015616,2]
[404309208,1770053447204,-1270.24622109,0.00015616,2]
[404309209,1770053447214,-1809.50611672,0.00015616,2]
[404309210,1770053447223,-812.26829567,0.00015616,2]
[404309211,1770053447232,-2000.0,0.00015616,2]
[404309212,1770053447241,-2000.0,0.00015616,2]
[404309213,1770053447252,-773.23,0.00015633,2]
[404309214,1770053447261,-159.60859955,0.00015655,2]
[404309215,1770053447272,-36531.85625172,0.00015671,2]
[404309216,1770053447281,-761.24012554,0.00015672,2]
[404309217,1770053447290,-209.40437684,0.00015733,2]
[404309218,1770053447299,-250.0,0.00015733,2]
[404309219,1770053447309,-209.40437684,0.00015733,2]
[404309220,1770053447318,-578.20924308,0.00015733,2]
[404309221,1770053447327,-250.0,0.00015733,2]
[404309222,1770053447336,-250.0,0.00015733,2]
[404309223,1770053447345,-250.0,0.00015733,2]
[404309224,1770053447354,-250.0,0.00015733,2]
[404309225,1770053447364,-250.0,0.00015733,2]
[404309226,1770053447373,-174.61919141,0.00015733,2]
[404309227,1770053447382,-151.0,0.00015733,2]
[404309228,1770053447392,-500.0,0.00015733,2]
[404309229,1770053447401,-500.0,0.00015733,2]
[404309230,1770053447411,-500.0,0.00015733,2]
[404309231,1770053447420,-500.0,0.00015733,2]
[404309232,1770053447429,-500.0,0.00015733,2]
[404309233,1770053447438,-500.0,0.00015733,2]
[404309234,1770053447448,-500.0,0.00015733,2]
[404309235,1770053447458,-500.0,0.00015733,2]
[404309236,1770053447468,-500.0,0.00015733,2]
[404309237,1770053447479,-500.0,0.00015733,2]
[404309238,1770053447489,-721.12765535,0.00015733,2]
[404309239,1770053447499,-500.0,0.00015733,2]
[404309240,1770053447508,-1428.38747117,0.00015733,2]
[404309241,1770053447520,-859.80605061,0.00015733,2]
[404309242,1770053447530,-250.0,0.00015733,2]
[404309243,1770053447539,-250.0,0.00015733,2]
[404309244,1770053447548,-250.0,0.00015733,2]
[404309245,1770053447558,-250.0,0.00015733,2]
[404309246,1770053447568,-250.0,0.00015733,2]
[404309247,1770053447578,-250.0,0.00015733,2]
[404309248,1770053447586,-250.0,0.00015733,2]
[404309249,1770053447597,-322.6107,0.00015733,2]
[404309250,1770053447606,-250.0,0.00015733,2]
[404309251,1770053447615,-250.0,0.00015733,2]
[404309252,1770053447626,-250.0,0.00015733,2]
[404309253,1770053447635,-250.0,0.00015733,2]
[404309254,1770053447645,-209.40437684,0.00015733,2]
[404309255,1770053447655,-217.15233878,0.00015788,2]
[404309256,1770053447664,-500.0,0.000158,2]
[404309257,1770053447674,-473327.2495912,0.00015807,2]
[404309258,1770053447684,-3572.79816,0.00015807,2]
[404309259,1770053447693,-225.18697532,0.00015843,2]
[404309260,1770053447703,-988.5,0.00015856,2]
[404309261,1770053447712,-305.88,0.0001589,2]
[404309262,1770053447723,-233.51889341,0.00015898,2]
[404309263,1770053447732,-773.23,0.00015907,2]
[404309264,1770053447741,-1000.0,0.00015918,2]
[404309265,1770053447751,-242.15909246,0.00015953,2]
[404309266,1770053447760,-5000.0,0.0001596,2]
[404309267,1770053447770,-360.21,0.00015985,2]
[404309268,1770053447779,-177.9576019,0.0001599,2]
[404309269,1770053447788,-151.0,0.00015997,2]
[404309270,1770053447797,-666.0,0.00015999,2]
[404309271,1770053447807,-160.0,0.00015999,2]
[404309272,1770053447817,-956.83032625,0.00016,2]
[404309273,1770053447828,-270.91542523,0.00016,2]
[404309274,1770053447838,-421.15115649,0.00016,2]
[404309275,1770053447848,-2599631.4158648,0.00016,4]
[404309276,1770053448148,-16071.00000002,0.00016,4]
[404309277,1770053448344,7464.23768926,0.00011216,2]
[404309278,1770053448370,10000.01,0.00011216,2]
[404309279,1770053448396,10000.01,0.00011216,2]
[404309280,1770053448436,-1168.91013872,0.00011216,2]
[404309281,1770053448448,-531600.00002955,0.00011216,2]
[404309282,1770053448459,-3030.275,0.00011216,2]
[404309283,1770053448471,-4000.0,0.00011216,2]
[404309284,1770053448482,-360.11324534,0.00011216,2]
[404309285,1770053448492,-503.0,0.00011216,2]
[404309286,1770053448504,-3059.39332884,0.00011216,2]
[404309287,1770053448515,-460.57840859,0.00011216,2]
[404309288,1770053448531,-12696.9,0.00011216,2]
[404309289,1770053448542,-321.03600364,0.00011216,2]
[404309290,1770053448554,-396.72,0.00011216,2]
[404309291,1770053448565,-1231.8,0.00011216,2]